{"text_format":"1","workbook":"xlsx","n_sheets":4,"sheets":["název společnosti","formulář","Pokyny","Sheet2"],"not_rendered":{"charts":0,"images":1,"macros":1,"external_links":0,"defined_names":6,"comments":0,"pivot_tables":0},"unopened":[],"bounds":{"document_bytes":16777216,"sheet_cells":100000,"rows_first":2000,"rows_last":500,"rows_between":2000,"halvings":0,"cell_chars":16384,"cell_head_chars":4096},"cells_cut":0,"cells_raw":0,"read":"whole","date_system":"1900"}

{"sheet":"název společnosti","index":0,"n_rows":5,"n_cols":2,"rows_kept":5,"cut":false,"hidden":true,"merged":[]}
[]
[]
[]
[null,"Pro korektní funkci formuláře zde doplňte název společnosti (označení správce):"]
[null,"Severomoravské vodovody a kanalizace Ostrava a.s."]

{"sheet":"formulář","index":1,"n_rows":35,"n_cols":10,"rows_kept":35,"cut":false,"hidden":false,"merged":[[5,2,5,4],[12,3,12,4],[13,3,13,4],[14,3,14,4],[32,4,32,6],[30,3,30,4],[7,3,7,4],[3,2,3,6],[27,3,27,4],[28,3,28,4],[29,3,29,4],[9,2,9,6],[25,2,25,6],[19,2,19,6],[21,3,21,6],[22,3,22,6],[23,3,23,6],[17,3,17,4],[11,3,11,4],[16,3,16,4]]}
[]
[]
[]
[null,null,"Formulář pro žádost o uplatnění práv subjektu údajů"]
[]
[null,null,"Typ žádosti",null,null,null,"Datum: _______________                               "]
[]
[null,null,null,"Žádost na uplatnění práva na:",null,null,null,null,{"$f":"IF(G8 <> \"\", \"G\", \"R\")","v":"R"}]
[]
[null,null,"Osobní údaje žadatele"]
[]
[null,null,null,"Jméno 1",null,null,null,null,{"$f":"IF(G12 <> \"\", \"G\", \"R\")","v":"R"}]
[null,null,null,"Příjmení 1",null,null,null,null,{"$f":"IF(G13 <> \"\", \"G\", \"R\")","v":"R"}]
[null,null,null,"Datum narození 1",null,null,null,null,"R"]
[null,null,null,"Telefonní číslo 1",null,null,null,null,"R"]
[null,null,null,"E-mail 1",null,null,null,null,"R"]
[null,null,null,"Adresa trvalého pobytu 1",null,null,null,null,"R"]
[null,null,null,"Korespondenční adresa\n(pokud se liší od adresy trvalého bydliště)",null,null,null,null,{"$f":"IF(G18<>\"\", \"G\", \"Y\")","v":"Y"}]
[]
[null,null,{"$f":"Sheet2!L5","v":""},null,null,null,null,null,{"$f":"Sheet2!L11","v":""}]
[]
[null,null,null,null,null,null,null,null,{"$f":"IF(I20 = 3, IF(D22 <> \"\", \"G\", \"Y\"), \"W\")","v":"W"}]
[null,null,null,null,null,null,null,null,{"$f":"IF(I20 = 3, IF(D23 <> \"\", \"G\", \"Y\"), \"W\")","v":"W"}]
[null,null,null,null,null,null,null,null,{"$f":"IF(I20 = 3, IF(D24 <> \"\", \"G\", \"Y\"), \"W\")","v":"W"}]
[]
[null,null,"Doplňující otázky",null,null,null,null,null,{"$f":"Sheet2!L18","v":0}]
[]
[null,null,null,{"$f":"IF(0 < Sheet2!L18, Sheet2!L13, Sheet2!L21)","v":" "},null,null,null,null,{"$f":"IF(J28 = \"W\", \"W\", IF(J28 = \"P\", IF(G28<>\"\", \"G\", \"R\"), IF(G28 <> \"\", \"G\", \"Y\")))","v":"W"},{"$f":"IF($I$26 > 0, IF(RIGHT(D28, 10) = \"(povinné):\", \"P\", \"V\"), \"W\")","v":"W"}]
[null,null,null,{"$f":"IF(1 < Sheet2!L18, Sheet2!L14, Sheet2!L21)","v":" "},null,null,null,null,{"$f":"IF(J29 = \"W\", \"W\", IF(J29 = \"P\", IF(G29<>\"\", \"G\", \"R\"), IF(G29 <> \"\", \"G\", \"Y\")))","v":"W"},{"$f":"IF($I$26 > 1, IF(RIGHT(D29, 10) = \"(povinné):\", \"P\", \"V\"), \"W\")","v":"W"}]
[null,null,null,{"$f":"IF(2 < Sheet2!L18, Sheet2!L15, Sheet2!L21)","v":" "},null,null,null,null,"W",{"$f":"IF($I$26 > 2, IF(RIGHT(D30, 10) = \"(povinné):\", \"P\", \"V\"), \"W\")","v":"W"}]
[null,null,null,{"$f":"IF(3 < Sheet2!L18, Sheet2!L16, Sheet2!L21)","v":" "},null,null,null,null,"W",{"$f":"IF($I$26 > 3, IF(RIGHT(D31, 10) = \"(povinné):\", \"P\", \"V\"), \"W\")","v":"W"}]
[]
[null,null,null,1,"\"Tyto údaje slouží k identifikaci žadatele za účelem vyhledání osobních údajů zpracovávaných společností \";Vodovody a kanalizaci Hlučín, s.r.o.;\" a za účelem zaslání odpovědi. Tyto údaje nebudou zpracovány k jinému účelu, než k výše uvedenému.\""]
[]
[null,null,null,null,"Podpis žadatele:",null,"Ověření totožnosti žadatele:",null,{"$f":"IF(Sheet2!D17 = 0, \"\", \"W\")","v":""}]

{"sheet":"Pokyny","index":2,"n_rows":12,"n_cols":1,"rows_kept":12,"cut":false,"hidden":false,"merged":[]}
["Pokyny pro vyplnění Formuláře – Žádost o uplatnění práv subjektu údajů: "]
["1.      Formulář obsahuje makra. Pro správnou činnost formuláře je nutné povolit spouštění maker. "]
["2.      Žadatel vybere jednu z nabízených možností  - uplatnění práva "]
["3.      Žadatel vyplní své osobní údaje z důvodu jeho jasné a nezaměnitelné identifikace "]
["4.      Žadatel vyplní své kontaktní údaje, aby mohl být v případě potřeby kontaktován a požádán např. o doplnění. "]
["5.      Žadatel má možnost do formuláře uvést vše co považuje za nutné sdělit, případně formulář doplnit samostatným sdělením (příloha) "]
[]
["Žadatel může vyplněný a podepsaný Formulář zaslat ze své datové schránky (pokud jí disponuje) do datové schránky společnosti (qw9a5vi)."]
["V případě, že žadatel podává Žádost osobně na kterémkoli zákaznickém centru společnosti, je zaměstnancem společnosti ověřena totožnost žadatele po předložení platného občanského průkazu nebo cestovního pasu. Ověření je do Žádosti zaměstnancem vyznačeno. "]
["Pokud žadatel hodlá zaslat vyplněný  Formulář společnosti poštou, je nutné podpis na Žádosti opatřit úředně ověřeným podpisem. "]
[]
["Verze dokumentu: 2.0"]

{"sheet":"Sheet2","index":3,"n_rows":24,"n_cols":21,"rows_kept":24,"cut":false,"hidden":true,"merged":[[19,13,22,14],[4,7,4,9],[17,13,17,14],[12,10,16,10],[4,13,4,14],[5,13,9,13],[12,13,16,13],[4,10,9,10],[10,13,10,14]]}
[]
[null,null,null,null,null,null,null,null,null,null,null,null,null,null,null,"Jiný důvod? (políčko níže nabýva hodnoty 0 a 1, kde 1 ~ jiný důvod)\nV závislosti na tomto číslu jsou vylistované tzv. sub-otázky níže",null,null,null,null,"Jiný důvod? (políčko níže nabýva hodnoty 0 a 1, kde 1 ~ jiný důvod)\nV závislosti na tomto číslu jsou vylistované tzv. sub-otázky níže"]
[null,null,null,null,null,null,null,null,null,null,null,null,null,null,null,{"$f":"IF(D17 = 1, IF(OR(formulář!D22 = Sheet2!L8, formulář!D23 = Sheet2!L8, formulář!D24 = Sheet2!L8) = TRUE, 1, 0), 0)","v":0},null,null,null,null,{"$f":"IF(D17 = 6, IF(OR(formulář!D22 = Sheet2!L8, formulář!D23 = Sheet2!L8, formulář!D24 = Sheet2!L8) = TRUE, 1, 0), 0)","v":0}]
[null,null,null,"Typ žádosti pro menu (vzorce):","Práva (text):",null,null,null,null,null,null,null,null,null,null,"1. Omezení","2. Oprava","3. Přenositelnost","4. Přístup","5. Námitka","6. Výmaz"]
[null,null,1,{"$f":"CONCATENATE(E5, \" \", Společnost)","v":"omezení zpracování osobních údajů zpracovávaných společností Severomoravské vodovody a kanalizace Ostrava a.s."},"omezení zpracování osobních údajů zpracovávaných společností",1,null,"Nové Menu",null,null,"Toto jsou otázky odpovídající zvolenému typu žádosti",{"$f":"IF($D$17 = 0, \"\", IF(INDIRECT(ADDRESS(ROW(P5), COLUMN(P5) + $D$17 - 1)) <> \"\", INDIRECT(ADDRESS(ROW(P5), COLUMN(P5) + $D$17 - 1)), \"\"))","v":""},null,"Úvod otázky",null,"V souladu s čl. 18 nařízení Evropského parlamentu a Rady EU 2016/679, obecného nařízení o ochraně osobních údajů, Vás tímto žádám o omezení použití těchto osobních údajů, které o mně máte k dispozici. Činím tak z důvodu, že:",{"$f":"CONCATENATE(\"V souladu s čl. 16 nařízení Evropského parlamentu a Rady EU 2016/679, obecné nařízení o ochraně osobních údajů, žádám tímto o opravu osobních údajů zpracovávaných společností \", Společnost, \".\")","v":"V souladu s čl. 16 nařízení Evropského parlamentu a Rady EU 2016/679, obecné nařízení o ochraně osobních údajů, žádám tímto o opravu osobních údajů zpracovávaných společností Severomoravské vodovody a kanalizace Ostrava a.s.."},{"$f":"CONCATENATE(\"V souladu s čl. 20 nařízení Evropského parlamentu a Rady EU 2016/679, obecné nařízení o ochraně osobních údajů, žádám tímto o předání osobních údajů zpracovávaných společností \", Společnost, \" ve strukturovaném, běžně používaném a strojově čitelném formátu.\")","v":"V souladu s čl. 20 nařízení Evropského parlamentu a Rady EU 2016/679, obecné nařízení o ochraně osobních údajů, žádám tímto o předání osobních údajů zpracovávaných společností Severomoravské vodovody a kanalizace Ostrava a.s. ve strukturovaném, běžně používaném a strojově čitelném formátu."},"V souladu s čl. 15 nařízení Evropského parlamentu a Rady EU 2016/679, obecné nařízení o ochraně osobních údajů, tímto žádám o:",{"$f":"CONCATENATE(\"V souladu s čl. 21 nařízení Evropského parlamentu a Rady EU 2016/679, obecné nařízení o ochraně osobních údajů, žádám tímto o ukončení zpracování osobních údajů společností  \", Společnost, \".\")","v":"V souladu s čl. 21 nařízení Evropského parlamentu a Rady EU 2016/679, obecné nařízení o ochraně osobních údajů, žádám tímto o ukončení zpracování osobních údajů společností  Severomoravské vodovody a kanalizace Ostrava a.s.."},{"$f":"CONCATENATE(\"V souladu s čl. 17 nařízení Evropského parlamentu a Rady EU 2016/679, obecné nařízení o ochraně osobních údajů, žádám o výmaz osobních údajů zpracovávaných společností \", Společnost, \" a to z důvodu že:\")","v":"V souladu s čl. 17 nařízení Evropského parlamentu a Rady EU 2016/679, obecné nařízení o ochraně osobních údajů, žádám o výmaz osobních údajů zpracovávaných společností Severomoravské vodovody a kanalizace Ostrava a.s. a to z důvodu že:"}]
[null,null,2,"opravu osobních údajů zpracovávaných společností Severomoravské vodovody a kanalizace Ostrava a.s.","opravu osobních údajů zpracovávaných společností",2,null,{"$f":"L6","v":""},{"$f":"\"-\"","v":"-"},{"$f":"IF($L$11 > 0, 1, 0)","v":1},null,"",null,"Možnosti",1,{"$f":"CONCATENATE(\"se domnívám, že zpracování mých osobních údajů prováděné společností \", Společnost, \" je protiprávní.\")","v":"se domnívám, že zpracování mých osobních údajů prováděné společností Severomoravské vodovody a kanalizace Ostrava a.s. je protiprávní."},null,null,{"$f":"CONCATENATE(\"Potvrzení, zda společnost \", Společnost, \" zpracovává mé osobní údaje.\")","v":"Potvrzení, zda společnost Severomoravské vodovody a kanalizace Ostrava a.s. zpracovává mé osobní údaje."},null,"Osobní údaje, které o mně zpracováváte, již nejsou potřebné pro účely, pro které byly shromážděny nebo jinak zpracovány."]
[null,null,3,"přenositelnost osobních údajů zpracovávaných společností Severomoravské vodovody a kanalizace Ostrava a.s.","přenositelnost osobních údajů zpracovávaných společností",3,null,{"$f":"L7","v":""},{"$f":"\"-\"","v":"-"},{"$f":"IF($L$11 > 1, 1, 0)","v":1},null,"",null,null,2,"zpracováváte mé osobní údaje, které potřebuji pro určení, výkon nebo obhajobu právních nároků.",null,null,"Poskytnutí bližších detailů o zpracování mých osobních údajů, včetně: 1. účelů, pro které mé údaje zpracováváte; 2. rozsah, ve kterém údaje zpracováváte; 3. příjemce, kterým mé osobní údaje zpřístupňujete; 4. plánovanou dobu uchování těchto údajů; 5. odkud jste mé osobní údaje získali; 6. zda na základě mých osobních údajů provádíte automatizované rozhodování.\n",null,"Odvolávám souhlas, který jsem vám poskytl/a pro zpracování svých osobních údajů."]
[null,null,4,"přístup k osobním údajům zpracovávaným společností Severomoravské vodovody a kanalizace Ostrava a.s.","přístup k osobním údajům zpracovávaným společností",4,null,{"$f":"L8","v":""},{"$f":"\"-\"","v":"-"},{"$f":"IF($L$11 > 2, 1, 0)","v":1},null,"",null,null,3,"Jiný důvod.",null,null,"Poskytnutí kopie mých osobních údajů a jejich zaslání na níže uvedenou adresu.",null,"Jiný důvod."]
[null,null,5,"vznesení námitky proti zpracování osobních údajů zpracovávaných společností Severomoravské vodovody a kanalizace Ostrava a.s.","vznesení námitky proti zpracování osobních údajů zpracovávaných společností",5,null,null,null,{"$f":"IF($L$11 > 3, 1, 0)","v":1},null,"",null,null,4]
[null,null,6,"výmaz osobních údajů zpracovávaných společností Severomoravské vodovody a kanalizace Ostrava a.s.","výmaz osobních údajů zpracovávaných společností",6,null,null,null,{"$f":"IF($L$11 > 4, 1, 0)","v":1},null,"",null,null,5]
[null,null,null,null,null,null,null,null,null,null,"qs:","",null,"počet otázek",null,3,0,0,3,0,3]
[]
[null,null,null,null,null,null,null,null,null,null,"Toto jsou sub-otázky odpovídající zvolenému typu žádosti",{"$f":"IF($D$17 = 0, \"\", IF(INDIRECT(ADDRESS(ROW(P13), COLUMN(P13) + $D$17 - 1)) <> \"\", INDIRECT(ADDRESS(ROW(P13), COLUMN(P13) + $D$17 - 1)), \"\"))","v":""},null,"Doplňující otázky",1,{"$f":"IF(P3 = 1, \"Jaké máte jiné/další důvody k podání této žádosti? (povinné):\", \"Kategorie osobních údajů, kterých se má omezení zpracování týkat (volitelné):\")","v":"Kategorie osobních údajů, kterých se má omezení zpracování týkat (volitelné):"},"Osobní údaje, které požaduji opravit (povinné):","Nový správce, jemuž se mají údaje přenést (volitelné):","E-mailová či korespondenční adresa pro zaslání údajů (volitelné):","Důvody pro vznesení této námitky (povinné):",{"$f":"IF(U3 = 1, \"Jaké máte jiné/další důvody k podání této žádosti? (povinné):\", \"Kategorie osobních údajů, kterých se má výmaz týkat (volitelné):\")","v":"Kategorie osobních údajů, kterých se má výmaz týkat (volitelné):"}]
[null,null,null,null,null,null,null,null,null,null,null,{"$f":"IF($D$17 = 0, \"\", IF(INDIRECT(ADDRESS(ROW(P14), COLUMN(P14) + $D$17 - 1)) <> \"\", INDIRECT(ADDRESS(ROW(P14), COLUMN(P14) + $D$17 - 1)), \"\"))","v":""},null,null,2,{"$f":"IF(P3 = 1, \"Kategorie osobních údajů, kterých se má omezení zpracování týkat (volitelné):\", \"Případné další informace související s žádostí (volitelné):\")","v":"Případné další informace související s žádostí (volitelné):"},"Případné další informace související s žádostí (volitelné):","E-mailová či korespondenční adresa nového správce pro zaslání údajů (volitelné):","Případné další informace související s žádostí (volitelné):","Případné další informace související s žádostí (volitelné):",{"$f":"IF(U3 = 1, \"Kategorie osobních údajů, kterých se má výmaz týkat (volitelné):\", \"Případné další informace související s žádostí (volitelné):\")","v":"Případné další informace související s žádostí (volitelné):"}]
[null,null,null,null,null,null,null,null,null,null,null,{"$f":"IF($D$17 = 0, \"\", IF(INDIRECT(ADDRESS(ROW(P15), COLUMN(P15) + $D$17 - 1)) <> \"\", INDIRECT(ADDRESS(ROW(P15), COLUMN(P15) + $D$17 - 1)), \"\"))","v":""},null,null,3,{"$f":"IF(P3 = 1, \"Případné další informace související s žádostí (volitelné):\", \"\")","v":""},null,"Kategorie osobních údajů, kterých se má přenositelnost týkat (volitelné):",null,null,{"$f":"IF(U3 = 1,  \"Případné další informace související s žádostí (volitelné):\", \"\")","v":""}]
[null,null,null,"Výběr z menu s výsledkem:",null,null,null,"Datum poslední změny:",null,null,null,{"$f":"IF($D$17 = 0, \"\", IF(INDIRECT(ADDRESS(ROW(P16), COLUMN(P16) + $D$17 - 1)) <> \"\", INDIRECT(ADDRESS(ROW(P16), COLUMN(P16) + $D$17 - 1)), \"\"))","v":""},null,null,4,null,null,"Případné další informace související s žádostí (volitelné):"]
[null,null,null,{"$f":"IF(formulář!G8 = \"\", 0, VLOOKUP(formulář!G8, Sheet2!D5:F10, 3, FALSE))","v":0},null,null,null,"2018-11-08T14:36:40",null,null,null,{"$f":"IF($D$17 = 0, \"\", IF(INDIRECT(ADDRESS(ROW(P17), COLUMN(P17) + $D$17 - 1)) <> \"\", INDIRECT(ADDRESS(ROW(P17), COLUMN(P17) + $D$17 - 1)), \"\"))","v":""},null,null,5]
[null,null,null,null,null,null,null,null,null,null,"qs:",{"$f":"IF($D$17 = 0, 0, IF(INDIRECT(ADDRESS(ROW(P18), COLUMN(P18) + $D$17 - 1)) <> \"\", INDIRECT(ADDRESS(ROW(P18), COLUMN(P18) + $D$17 - 1)), \"\"))","v":0},null,"počet otázek",null,{"$f":"IF(P3 = 1, 3, 2)","v":2},2,4,2,2,{"$f":"IF(U3 = 1, 3, 2)","v":2}]
[]
[null,null,null,null,null,null,null,null,null,null,"Disclaimer dle volby",{"$f":"IF($D$17 = 0, \"\", IF(INDIRECT(ADDRESS(ROW(P20), COLUMN(P20) + $D$17 - 1)) <> \"\", INDIRECT(ADDRESS(ROW(P20), COLUMN(P20) + $D$17 - 1)), \"\"))","v":""},null,"Disclaimer",null,{"$f":"CONCATENATE(P21, Společnost, P22)","v":"Uvedená žádost je vzorovou obecnou žádostí o omezení zpracování osobních údajů ve smyslu čl. 12 a 18 nařízení Evropského parlamentu a Rady EU 2016/679, obecné nařízení o ochraně osobních údajů. Tuto žádost je vhodné upravit vždy pro konkrétní účely a situace, ve kterých má subjektům údajů sloužit k uplatnění jejich práv. Tento dokument je určen výhradně pro potřeby společnosti Severomoravské vodovody a kanalizace Ostrava a.s. (dále jen „klient“). Jeho obsah je důvěrný a právní poradenství v tomto dokumentu je chráněno jako komunikace mezi advokátem a klientem."},"Uvedená žádost je vzorovou obecnou žádostí o opravu ve smyslu čl. 12 a 16 nařízení Evropského parlamentu a Rady EU 2016/679, obecné nařízení o ochraně osobních údajů. Tuto žádost je vhodné upravit vždy pro konkrétní účely a situace, ve kterých má subjektům údajů sloužit k uplatnění jejich práv. Tento dokument je určen výhradně pro potřeby společnosti Severomoravské vodovody a kanalizace Ostrava a.s. (dále jen „klient“). Jeho obsah je důvěrný a právní poradenství v tomto dokumentu je chráněno jako komunikace mezi advokátem a klientem.","Uvedená žádost je vzorovou obecnou žádostí o přenositelnost osobních údajů ve smyslu čl. 12 a 20 nařízení Evropského parlamentu a Rady EU 2016/679, obecné nařízení o ochraně osobních údajů. Tuto žádost je vhodné upravit vždy pro konkrétní účely a situace, ve kterých má subjektům údajů sloužit k uplatnění jejich práv. Tento dokument je určen výhradně pro potřeby společnosti Severomoravské vodovody a kanalizace Ostrava a.s. (dále jen „klient“). Jeho obsah je důvěrný a právní poradenství v tomto dokumentu je chráněno jako komunikace mezi advokátem a klientem.","Uvedená žádost je vzorovou obecnou žádostí o přístup ve smyslu čl. 12 a 15 nařízení Evropského parlamentu a Rady EU 2016/679, obecné nařízení o ochraně osobních údajů. Tuto žádost je vhodné upravit vždy pro konkrétní účely a situace, ve kterých má subjektům údajů sloužit k uplatnění jejich práv. Tento dokument je určen výhradně pro potřeby společnosti Severomoravské vodovody a kanalizace Ostrava a.s. (dále jen „klient“). Jeho obsah je důvěrný a právní poradenství v tomto dokumentu je chráněno jako komunikace mezi advokátem a klientem.","Uvedená žádost je vzorovou obecnou žádostí ke vznesení námitek ve smyslu čl. 12 a 21 nařízení Evropského parlamentu a Rady EU 2016/679, obecné nařízení o ochraně osobních údajů. Tuto žádost je vhodné upravit vždy pro konkrétní účely a situace, ve kterých má subjektům údajů sloužit k uplatnění jejich práv. Tento dokument je určen výhradně pro potřeby společnosti Severomoravské vodovody a kanalizace Ostrava a.s. (dále jen „klient“). Jeho obsah je důvěrný a právní poradenství v tomto dokumentu je chráněno jako komunikace mezi advokátem a klientem.","Uvedená žádost je vzorovou obecnou žádostí o výmaz ve smyslu čl. 12 a 17 nařízení Evropského parlamentu a Rady EU 2016/679, obecné nařízení o ochraně osobních údajů. Tuto žádost je vhodné upravit vždy pro konkrétní účely a situace, ve kterých má subjektům údajů sloužit k uplatnění jejich práv. Tento dokument je určen výhradně pro potřeby společnosti Severomoravské vodovody a kanalizace Ostrava a.s. (dále jen „klient“). Jeho obsah je důvěrný a právní poradenství v tomto dokumentu je chráněno jako komunikace mezi advokátem a klientem."]
[null,null,null,null,null,null,null,null,null,null,null," ",null,null,null,"Uvedená žádost je vzorovou obecnou žádostí o omezení zpracování osobních údajů ve smyslu čl. 12 a 18 nařízení Evropského parlamentu a Rady EU 2016/679, obecné nařízení o ochraně osobních údajů. Tuto žádost je vhodné upravit vždy pro konkrétní účely a situace, ve kterých má subjektům údajů sloužit k uplatnění jejich práv. Tento dokument je určen výhradně pro potřeby společnosti ","Uvedená žádost je vzorovou obecnou žádostí o opravu ve smyslu čl. 12 a 16 nařízení Evropského parlamentu a Rady EU 2016/679, obecné nařízení o ochraně osobních údajů. Tuto žádost je vhodné upravit vždy pro konkrétní účely a situace, ve kterých má subjektům údajů sloužit k uplatnění jejich práv. Tento dokument je určen výhradně pro potřeby společnosti ","Uvedená žádost je vzorovou obecnou žádostí o přenositelnost osobních údajů ve smyslu čl. 12 a 20 nařízení Evropského parlamentu a Rady EU 2016/679, obecné nařízení o ochraně osobních údajů. Tuto žádost je vhodné upravit vždy pro konkrétní účely a situace, ve kterých má subjektům údajů sloužit k uplatnění jejich práv. Tento dokument je určen výhradně pro potřeby společnosti ","Uvedená žádost je vzorovou obecnou žádostí o přístup ve smyslu čl. 12 a 15 nařízení Evropského parlamentu a Rady EU 2016/679, obecné nařízení o ochraně osobních údajů. Tuto žádost je vhodné upravit vždy pro konkrétní účely a situace, ve kterých má subjektům údajů sloužit k uplatnění jejich práv. Tento dokument je určen výhradně pro potřeby společnosti ","Uvedená žádost je vzorovou obecnou žádostí ke vznesení námitek ve smyslu čl. 12 a 21 nařízení Evropského parlamentu a Rady EU 2016/679, obecné nařízení o ochraně osobních údajů. Tuto žádost je vhodné upravit vždy pro konkrétní účely a situace, ve kterých má subjektům údajů sloužit k uplatnění jejich práv. Tento dokument je určen výhradně pro potřeby společnosti ","Uvedená žádost je vzorovou obecnou žádostí o výmaz ve smyslu čl. 12 a 17 nařízení Evropského parlamentu a Rady EU 2016/679, obecné nařízení o ochraně osobních údajů. Tuto žádost je vhodné upravit vždy pro konkrétní účely a situace, ve kterých má subjektům údajů sloužit k uplatnění jejich práv. Tento dokument je určen výhradně pro potřeby společnosti "]
[null,null,null,null,null,null,null,null,null,null,null,null,null,null,null," (dále jen „klient“). Jeho obsah je důvěrný a právní poradenství v tomto dokumentu je chráněno jako komunikace mezi advokátem a klientem."," (dále jen „klient“). Jeho obsah je důvěrný a právní poradenství v tomto dokumentu je chráněno jako komunikace mezi advokátem a klientem."," (dále jen „klient“). Jeho obsah je důvěrný a právní poradenství v tomto dokumentu je chráněno jako komunikace mezi advokátem a klientem."," (dále jen „klient“). Jeho obsah je důvěrný a právní poradenství v tomto dokumentu je chráněno jako komunikace mezi advokátem a klientem."," (dále jen „klient“). Jeho obsah je důvěrný a právní poradenství v tomto dokumentu je chráněno jako komunikace mezi advokátem a klientem."," (dále jen „klient“). Jeho obsah je důvěrný a právní poradenství v tomto dokumentu je chráněno jako komunikace mezi advokátem a klientem."]
[]
[null,null,null,"smvak"]